fUSD/lending_fUSD_20241201
["ID","MTS","AMOUNT","RATE_DAILY","PERIOD"]
[343931001,1733090883275,-5000.0,0.00037996,30]
[343931002,1733090883303,-2069.96969683,0.00038,30]
[343931003,1733090883328,-34361.0,0.00038,60]
[343931004,1733090883354,-3000.0,0.00038,120]
[343931005,1733090883381,-6744.58,0.00038,30]
[343931006,1733090883408,-5000.0,0.00038,60]
[343931007,1733090883435,-5000.0,0.00038,30]
[343931008,1733090883462,-5000.0,0.00038,30]
[343931009,1733090883489,-5000.0,0.00038,30]
[343931010,1733090883517,-3000.0,0.00038,120]
[343931011,1733090883543,-3000.0,0.00038,60]
[343931012,1733090883570,-7189.55177649,0.00038,120]
[343931013,1733090883596,-3171.38625308,0.00038,120]
[343931014,1733090883621,-2010.06480158,0.00038,120]
[343931015,1733090883648,-250.0,0.00038,30]
[343931016,1733090883676,-151.0,0.00038055,120]
[343931017,1733090883703,-2106.07,0.00038082,120]
[343931018,1733090883733,-500.0,0.00038356,120]
[343931019,1733090883762,-500.0,0.00038356,120]
[343931020,1733090883797,-553.13166867,0.00038356,120]
[343931021,1733090883833,-500.0,0.00038356,120]
[343931022,1733090883860,-636.53003703,0.00038356,120]
[343931023,1733090883890,-500.0,0.00038356,120]
[343931024,1733090883919,-500.0,0.00038356,120]
[343931025,1733090883948,-500.0,0.00038356,120]
[343931026,1733090883974,-500.0,0.00038356,120]
[343931027,1733090884002,-500.0,0.00038356,120]
[343931028,1733090884037,-500.0,0.00038356,120]
[343931029,1733090884063,-500.0,0.00038356,120]
[343931030,1733090884089,-500.0,0.00038356,120]
[343931031,1733090884117,-587.36168415,0.00038356,120]
[343931032,1733090884148,-2106.07,0.00038356,120]
[343931033,1733090884174,-500.0,0.00038356,120]
[343931034,1733090884200,-500.0,0.00038356,120]
[343931035,1733090884225,-500.0,0.00038356,120]
[343931036,1733090884250,-337.17804398,0.00038356,120]
[343931037,1733090884282,-4435.24,0.00038356,120]
[343931038,1733090884307,-4435.24,0.00038356,120]
[343931039,1733090884332,-4435.24,0.00038356,120]
[343931040,1733090884358,-4435.24,0.00038356,120]
[343931041,1733090884383,-4435.24,0.00038356,120]
[343931042,1733090884409,-4435.24,0.00038356,120]
[343931043,1733090884436,-4435.24,0.00038356,120]
[343931044,1733090884462,-4435.24,0.00038356,120]
[343931045,1733090884487,-4435.24,0.00038356,120]
[343931046,1733090884513,-4435.24,0.00038356,120]
[343931047,1733090884540,-4435.24,0.00038356,120]
[343931048,1733090884567,-4435.24,0.00038356,120]
[343931049,1733090884595,-4435.24,0.00038356,120]
[343931050,1733090884622,-4435.24,0.00038356,120]
[343931051,1733090884649,-4435.24,0.00038356,120]
[343931052,1733090884676,-4435.24,0.00038356,120]
[343931053,1733090884704,-4435.24,0.00038356,120]
[343931054,1733090884732,-4435.24,0.00038356,120]
[343931055,1733090884760,-4435.24,0.00038356,120]
[343931056,1733090884791,-4435.24,0.00038356,120]
[343931057,1733090884817,-4435.24,0.00038356,120]
[343931058,1733090884844,-4435.24,0.00038356,120]
[343931059,1733090884870,-4435.24,0.00038356,120]
[343931060,1733090884902,-4435.44683968,0.00038356,120]
[343931061,1733090884931,-500.0,0.00038356,120]
[343931062,1733090884960,-500.0,0.00038356,120]
[343931063,1733090884994,-500.0,0.00038356,120]
[343931064,1733090885024,-500.0,0.00038356,120]
[343931065,1733090885050,-491.60955974,0.00038356,120]
[343931066,1733090885076,-500.0,0.00038356,120]
[343931067,1733090885101,-500.0,0.00038356,120]
[343931068,1733090885126,-500.0,0.00038356,120]
[343931069,1733090885150,-500.0,0.00038356,120]
[343931070,1733090885176,-500.0,0.00038356,120]
[343931071,1733090885200,-500.0,0.00038356,120]
[343931072,1733090885224,-500.0,0.00038356,120]
[343931073,1733090885248,-500.0,0.00038356,120]
[343931074,1733090885276,-500.0,0.00038356,120]
[343931075,1733090885300,-500.0,0.00038356,120]
[343931076,1733090885324,-500.0,0.00038356,120]
[343931077,1733090885348,-500.0,0.00038356,120]
[343931078,1733090885373,-500.0,0.00038356,120]
[343931079,1733090885399,-500.0,0.00038356,120]
[343931080,1733090885423,-500.0,0.00038356,120]
[343931081,1733090885450,-500.0,0.00038356,120]
[343931082,1733090885474,-500.0,0.00038356,120]
[343931083,1733090885501,-500.0,0.00038356,120]
[343931084,1733090885528,-425.38306412,0.00038356,120]
[343931085,1733090885554,-229.39297042,0.00038356,60]
[343931086,1733090885579,-2000.0,0.00038383,120]
[343931087,1733090885604,-700.0,0.000384,120]
[343931088,1733090885629,-1622.22538953,0.000384,33]
[343931089,1733090885654,-10000.0,0.000384,120]
[343931090,1733090885679,-177.52222222,0.00038493,120]
[343931091,1733090885705,-2106.07,0.0003863,120]
[343931092,1733090885730,-22269.61813775,0.00038646,40]
[343931093,1733090885759,-9846.90571878,0.00038646,40]
[343931094,1733090885787,-4470.03765934,0.00038646,40]
[343931095,1733090885814,-18868.56907984,0.00038646,40]
[343931096,1733090885841,-10334.0,0.000388,40]
[343931097,1733090885868,-6529.58476522,0.0003888,30]
[343931098,1733090885895,-2106.07,0.00038904,120]
[343931099,1733090886140,-716.41595457,0.0003898,30]
[343931100,1733090886168,-7006.0,0.00038999,120]
[343931101,1733090886194,-5332.51228593,0.00039,30]
[343931102,1733090886221,-29628.61586158,0.00039,120]
[343931103,1733090886247,-1000.0,0.00039,120]
[343931104,1733090886275,-8000.0,0.00039,30]
[343931105,1733090886300,-1843.050063,0.00039,40]
[343931106,1733090886324,-263.866,0.00039,120]
[343931107,1733090886348,-6282.31337113,0.00039,120]
[343931108,1733090886372,-100000.0,0.00039,120]
[343931109,1733090886396,-1386.91687728,0.00039,120]
[343931110,1733090886421,-150.0,0.000391,120]
[343931111,1733090886448,-2106.16245215,0.00039178,120]
[343931112,1733090886473,-177.52222222,0.00039342,120]
[343931113,1733090886498,-2000.0,0.00039393,120]
[343931114,1733090886526,-151.0,0.00039397,120]
[343931115,1733090886551,-577.59520664,0.000394,30]
[343931116,1733090886579,-700.0,0.000394,120]
[343931117,1733090886604,-16795.0,0.000395,120]
[343931118,1733090886629,-577.240281,0.00039575,32]
[343931119,1733090886656,-500.0,0.00039778,33]
[343931120,1733090886682,-500.0,0.00039778,33]
[343931121,1733090886707,-500.0,0.00039778,33]
[343931122,1733090886733,-850.0,0.000398,120]
[343931123,1733090886760,-150.0,0.00039817,120]
[343931124,1733090886789,-1000.0,0.00039863,120]
[343931125,1733090886816,-1000.0,0.00039863,120]
[343931126,1733090886841,-1000.0,0.00039863,120]
[343931127,1733090886867,-1000.0,0.00039863,120]
[343931128,1733090886892,-1000.0,0.00039863,120]
[343931129,1733090886918,-1000.0,0.00039863,120]
[343931130,1733090886944,-1000.0,0.00039863,120]
[343931131,1733090886970,-1000.0,0.00039863,120]
[343931132,1733090886995,-1000.0,0.00039863,120]
[343931133,1733090887023,-1000.0,0.00039863,120]
[343931134,1733090887049,-216.98799553,0.00039863,120]
[343931135,1733090887076,-1000.0,0.00039863,120]
[343931136,1733090887101,-1000.0,0.00039863,120]
[343931137,1733090887128,-1000.0,0.00039863,120]
[343931138,1733090887155,-1000.0,0.00039863,120]
[343931139,1733090887181,-1000.0,0.00039863,120]
[343931140,1733090887208,-1000.0,0.00039863,120]
[343931141,1733090887235,-1000.0,0.00039863,120]
[343931142,1733090887266,-1000.0,0.00039863,120]
[343931143,1733090887292,-1000.0,0.00039863,120]
[343931144,1733090887319,-1000.0,0.00039863,120]
[343931145,1733090887345,-1000.0,0.00039863,120]
[343931146,1733090887370,-1000.0,0.00039863,120]
[343931147,1733090887396,-1000.0,0.00039863,120]
[343931148,1733090887422,-1000.0,0.00039863,120]
[343931149,1733090887450,-1000.0,0.00039863,120]
[343931150,1733090887477,-1000.0,0.00039863,120]
[343931151,1733090887517,-1000.0,0.00039863,120]
[343931152,1733090887556,-1000.0,0.00039863,120]
[343931153,1733090887595,-876.23627317,0.00039863,120]
[343931154,1733090887632,-1000.0,0.00039863,120]
[343931155,1733090887671,-1000.0,0.00039863,120]
[343931156,1733090887710,-1000.0,0.00039863,120]
[343931157,1733090887746,-1000.0,0.00039863,120]
[343931158,1733090887783,-1000.0,0.00039863,120]
[343931159,1733090887819,-1000.0,0.00039863,120]
[343931160,1733090887857,-970.6224,0.00039863,120]
[343931161,1733090887894,-72101.08656893,0.0003987,120]
[343931162,1733090887931,-5049.13877054,0.00039876,31]
[343931163,1733090887970,-9604.0,0.000399,45]
[343931164,1733090888006,-290066.0,0.0003993,120]
[343931165,1733090888041,-500.0,0.00039944,33]
[343931166,1733090888079,-500.0,0.00039944,33]
[343931167,1733090888116,-75883.22835049,0.0003995,120]
[343931168,1733090888152,-253.06,0.0003997,120]
[343931169,1733090888187,-150.5,0.0003998,120]
[343931170,1733090888223,-1823.0,0.00039989,35]
[343931171,1733090888260,-1948.05,0.0003999,120]
[343931172,1733090888295,-150.5,0.0003999,120]
[343931173,1733090888333,-500.0,0.0004,61]
[343931174,1733090888367,-45943.32701052,0.0004,60]
[343931175,1733090888404,-173.49936372,0.0004,120]
[343931176,1733090888444,-1800.0,0.0004,41]
[343931177,1733090888486,-200.0,0.0004,30]
[343931178,1733090888524,-1507.04286246,0.0004,30]
[343931179,1733090888565,-338.65953235,0.0004,30]
[343931180,1733090888602,-221.907464,0.0004,30]
[343931181,1733090888638,-346.78541989,0.0004,30]
[343931182,1733090888675,-513.72,0.0004,120]
[343931183,1733090888711,-2105.16394526,0.0004,120]
[343931184,1733090888748,-700.0,0.0004,120]
[343931185,1733090888789,-1349.1233961,0.0004,120]
[343931186,1733090888827,-227.0,0.0004,120]
[343931187,1733090888863,-4000.0,0.0004,120]
[343931188,1733090888903,-5000.0,0.0004,120]
[343931189,1733090888943,-2080.37315986,0.0004,120]
[343931190,1733090888983,-200.0,0.0004,120]
[343931191,1733090889021,-319.0,0.0004,30]
[343931192,1733090889059,-1022.15,0.0004,120]
[343931193,1733090889099,-5000.0,0.0004,60]
[343931194,1733090889139,-5000.0,0.0004,30]
[343931195,1733090889176,-5000.0,0.0004,30]
[343931196,1733090889215,-5017.57087182,0.0004,120]
[343931197,1733090889252,-1000.0,0.0004,120]
[343931198,1733090889292,-338.52566652,0.0004,30]
[343931199,1733090889329,-9416.57852598,0.0004,120]
[343931200,1733090889367,-4000.0,0.0004,60]
[343931201,1733090889403,-481.0,0.0004,120]
[343931202,1733090889714,-2734.0,0.0004,120]
[343931203,1733090889753,-267.86412094,0.0004,120]
[343931204,1733090889797,-3050.0,0.0004,120]
[343931205,1733090889835,-4284.41981677,0.0004,30]
[343931206,1733090889877,-5000.0,0.0004,60]
[343931207,1733090889913,-10000.0,0.0004,120]
[343931208,1733090889950,-262.09,0.0004,30]
[343931209,1733090889986,-501.19549759,0.0004,120]
[343931210,1733090890023,-500.0,0.0004,120]
[343931211,1733090890059,-200.0,0.0004,120]
[343931212,1733090890094,-301.85480254,0.0004,120]
[343931213,1733090890129,-9049.40462367,0.0004,120]
[343931214,1733090890163,-300.13359915,0.0004,60]
[343931215,1733090890200,-7189.55177649,0.0004,120]
[343931216,1733090890236,-3171.38625308,0.0004,120]
[343931217,1733090890271,-338.84,0.0004,30]
[343931218,1733090890307,-562.14,0.0004,120]
[343931219,1733090890343,-535.0,0.0004,30]
[343931220,1733090890380,-500.33,0.0004,120]
[343931221,1733090890415,-1836.94831197,0.0004,120]
[343931222,1733090890453,-3750.0,0.0004,120]
[343931223,1733090890490,-2817.63,0.0004,120]
[343931224,1733090890532,-1102.68,0.0004,120]
[343931225,1733090890573,-158.86,0.0004,120]
[343931226,1733090890610,-369.25,0.0004,120]
[343931227,1733090890646,-955.42,0.0004,120]
[343931228,1733090890683,-910.24,0.0004,120]
[343931229,1733090890718,-250.0,0.0004,30]
[343931230,1733090890754,-1652.17948047,0.0004,120]
[343931231,1733090890796,-2700.18475307,0.000401,120]
[343931232,1733090890834,-3750.0,0.00040125,120]
[343931233,1733090890871,-177.52222222,0.00040192,120]
[343931234,1733090890910,-3750.0,0.0004025,120]
[343931235,1733090890945,-150.0,0.00040289,120]
[343931236,1733090890982,-1004.78,0.0004036,39]
[343931237,1733090891020,-3750.0,0.00040375,120]
[343931238,1733090891057,-535.8493056,0.000404,120]
[343931239,1733090891094,-2000.0,0.00040404,120]
[343931240,1733090891129,-5332.51128593,0.000405,30]
[343931241,1733090891164,-150.0,0.000405,120]
[343931242,1733090891199,-32368.54554306,0.000405,120]
[343931243,1733090891234,-5000.0,0.000405,60]
[343931244,1733090891269,-5163.0,0.000405,120]
[343931245,1733090891306,-3750.0,0.000405,120]
[343931246,1733090891343,-150.0,0.00040549,120]
[343931247,1733090891377,-150.0,0.00040571,120]
[343931248,1733090891412,-3750.0,0.00040625,120]
[343931249,1733090891448,-36150.0,0.000407,120]
[343931250,1733090891486,-151.0,0.0004074,120]
[343931251,1733090891522,-3750.0,0.0004075,120]
[343931252,1733090891562,-500.0,0.00040778,33]
[343931253,1733090891598,-500.0,0.00040778,33]
[343931254,1733090891634,-226.2100957,0.000408,120]
[343931255,1733090891670,-1666.57,0.00040814,30]
[343931256,1733090891705,-1666.57,0.00040814,30]
[343931257,1733090891739,-1666.57,0.00040814,30]
[343931258,1733090891778,-1666.57,0.00040814,30]
[343931259,1733090891815,-3750.0,0.00040875,120]
[343931260,1733090891854,-9722.47778334,0.0004088,120]
[343931261,1733090891890,-64454.98399459,0.0004098,30]
[343931262,1733090891926,-356.83563276,0.00040998,120]
[343931263,1733090891962,-500.0,0.00041,61]
[343931264,1733090892000,-1999.999999,0.00041,120]
[343931265,1733090892041,-1800.0,0.00041,42]
[343931266,1733090892079,-10000.01658619,0.00041,120]
[343931267,1733090892116,-500.0,0.00041,120]
[343931268,1733090892158,-5010.0,0.00041,120]
[343931269,1733090892195,-332.48844579,0.00041,120]
[343931270,1733090892232,-1000.0,0.00041,120]
[343931271,1733090892267,-20000.0,0.00041,120]
[343931272,1733090892303,-23901.9381486,0.00041,30]
[343931273,1733090892339,-592.1520188,0.00041,120]
[343931274,1733090892375,-692135.63368235,0.00041,120]
[343931275,1733090892411,-3750.0,0.00041,120]
[343931276,1733090892446,-9914.0,0.00041,117]
[343931277,1733090892481,-2543.14,0.00041041,30]
[343931278,1733090892521,-177.52222222,0.00041041,120]
[343931279,1733090892558,-912.97,0.00041051,30]
[343931280,1733090892593,-4439.63,0.00041053,30]
[343931281,1733090892630,-5000.0,0.00041055,30]
[343931282,1733090892665,-25000.0,0.00041077,30]
[343931283,1733090892701,-1441.6716419,0.00041087,120]
[343931284,1733090892737,-1666.57,0.00041088,30]
[343931285,1733090892776,-1666.57,0.00041088,30]
[343931286,1733090892814,-2328.91436,0.00041088,30]
[343931287,1733090892850,-2000.0,0.00041095,30]
[343931288,1733090892887,-2000.0,0.00041095,30]
[343931289,1733090892922,-2000.0,0.00041095,30]
[343931290,1733090892958,-2115.55602362,0.00041095,30]
[343931291,1733090892993,-5000.0,0.00041095,70]
[343931292,1733090893038,-3124.96,0.00041095,120]
[343931293,1733090893073,-201.84397735,0.00041096,60]
[343931294,1733090893107,-1917.7,0.00041096,120]
[343931295,1733090901322,150.0,0.000401,120]
[343931296,1733090901360,500.0,0.000401,120]
[343931297,1733090901703,150.0,0.00040125,120]
[343931298,1733090901755,500.0,0.00040125,120]
[343931299,1733090902000,500.0,0.00040192,120]
[343931300,1733090902232,150.0,0.00040192,120]
[343931301,1733090902332,150.0,0.0004025,120]
[343931302,1733090902369,500.0,0.0004025,120]
[343931303,1733090902467,150.0,0.00040289,120]
[343931304,1733090902507,500.0,0.00040289,120]
[343931305,1733090902560,150.0,0.0004036,39]
[343931306,1733090902623,500.0,0.0004036,39]
[343931307,1733090902716,150.0,0.00040375,120]
[343931308,1733090902789,500.0,0.00040375,120]
[343931309,1733090902985,150.0,0.000404,120]
[343931310,1733090903043,500.0,0.000404,120]
[343931311,1733090903094,150.0,0.00040404,120]
[343931312,1733090903152,500.0,0.00040404,120]
[343931313,1733090903214,150.0,0.000405,30]
[343931314,1733090903321,500.0,0.000405,30]
[343931315,1733090903556,150.0,0.00040549,120]
[343931316,1733090903624,500.0,0.00040549,120]
[343931317,1733090903665,150.0,0.00040571,120]
[343931318,1733090903730,500.0,0.00040571,120]
[343931319,1733090903800,150.0,0.00040625,120]
[343931320,1733090903944,500.0,0.00040625,120]
[343931321,1733090904868,150.0,0.000407,120]
[343931322,1733090904934,500.0,0.000407,120]
[343931323,1733090905202,150.0,0.0004074,120]
[343931324,1733090905328,500.0,0.0004074,120]
[343931325,1733090905400,500.0,0.0004075,120]
[343931326,1733090905568,500.0,0.00040778,33]
[343931327,1733090905867,500.0,0.000408,120]
[343931328,1733090906550,500.0,0.00040814,30]
[343931329,1733090906659,500.0,0.00040875,120]
[343931330,1733090906813,150.0,0.000401,30]
[343931331,1733090906894,500.0,0.0004088,120]
[343931332,1733090907203,500.0,0.00040125,120]
[343931333,1733090907319,500.0,0.0004098,30]
[343931334,1733090907477,500.0,0.00040192,120]
[343931335,1733090907528,500.0,0.00040998,120]
[343931336,1733090907613,500.0,0.0004025,120]
[343931337,1733090907665,500.0,0.00041,61]
[343931338,1733090907702,1041.66,0.00041095,120]
[343931339,1733090907812,500.0,0.00040289,120]
[343931340,1733090907852,500.0,0.00041041,30]
[343931341,1733090907961,500.0,0.0004036,39]
[343931342,1733090908103,500.0,0.00041051,30]
[343931343,1733090908309,500.0,0.00041053,30]
[343931344,1733090908348,500.0,0.000407,120]
[343931345,1733090908442,500.0,0.00041055,30]
[343931346,1733090908548,500.0,0.00041077,30]
[343931347,1733090908590,500.0,0.0004074,120]
[343931348,1733090908980,500.0,0.0004075,120]
[343931349,1733090909104,500.0,0.00040778,33]
[343931350,1733090909427,500.0,0.000408,120]
[343931351,1733090909605,500.0,0.00040814,30]
[343931352,1733090909786,500.0,0.00040875,120]
[343931353,1733090909930,500.0,0.0004088,120]
[343931354,1733090910148,500.0,0.0004098,30]
[343931355,1733090910220,500.0,0.00040998,120]
[343931356,1733090910474,500.0,0.00041,61]
[343931357,1733090910532,500.0,0.00041087,120]
[343931358,1733090910640,500.0,0.00041088,30]
[343931359,1733090911202,500.0,0.00041095,120]
[343931360,1733090912981,150.0,0.00041095,30]
[343931361,1733090924566,150.0,0.00041095,30]
[343931367,1733090937184,150.0,0.00041095,30]
[343931368,1733090937281,400.5724103,0.000372,103]
[343931369,1733090942175,400.57241029,0.000372,103]
[343931370,1733090947503,1000.0,0.00033149,60]
[343931371,1733090947568,400.57241029,0.000372,103]
[343931372,1733090947837,800.0,0.00035615,60]
[343931373,1733090947964,500.0,0.00035615,60]
[343931374,1733090948364,500.0,0.00033149,60]
[343931375,1733090948884,1000.0,0.00033697,60]
[343931376,1733090949214,800.0,0.00036163,60]
[343931377,1733090949746,500.0,0.00036163,60]
[343931378,1733090949991,500.0,0.00033697,60]
[343931379,1733090950112,1000.0,0.00034793,60]
[343931380,1733090951020,800.0,0.00036711,60]
[343931381,1733090951279,500.0,0.00034793,60]
[343931382,1733090951455,500.0,0.00037259,60]
[343931383,1733090951636,1000.0,0.00035889,60]
[343931384,1733090951990,400.57241029,0.000372,103]
[343931385,1733090952812,500.0,0.00035889,60]
[343931386,1733090953003,500.0,0.00038355,60]
[343931387,1733090953060,800.0,0.00037259,60]
[343931388,1733090953152,1000.0,0.00036985,60]
[343931389,1733090954595,500.0,0.00039451,60]
[343931390,1733090954649,500.0,0.00036985,60]
[343931391,1733090954706,800.0,0.00037807,60]
[343931392,1733090954782,1000.0,0.00038081,60]
[343931393,1733090956126,500.0,0.00040547,60]
[343931394,1733090956166,500.0,0.00038081,60]
[343931395,1733090956225,800.0,0.00038355,60]
[343931396,1733090956322,1000.0,0.00039177,60]
[343931397,1733090957114,400.57241029,0.000372,103]
[343931398,1733090958023,421.51873653,0.00029913,30]
[343931399,1733090958187,800.0,0.00039451,60]
[343931400,1733090958255,500.0,0.00039177,60]
[343931401,1733090958323,421.51873653,0.00030408,30]
[343931402,1733090958401,1000.0,0.00040273,60]
[343931403,1733090958689,421.51873653,0.00030622,30]
[343931404,1733090958900,421.51873653,0.00030822,30]
[343931405,1733090959391,800.0,0.00040547,60]
[343931406,1733090959431,421.51873653,0.00030979,30]
[343931407,1733090959480,500.0,0.00040273,60]
[343931408,1733090959632,421.51873653,0.00031496,30]
[343931409,1733090959920,421.51873653,0.00031641,30]
[343931411,1733090966162,421.51873653,0.00031808,30]
[343931412,1733090966457,421.51873653,0.00032311,30]
[343931413,1733090966774,421.51873653,0.00032378,30]
[343931414,1733090966838,1500.0,7.147e-05,2]
[343931415,1733090967593,421.51873653,0.00032722,30]
[343931416,1733090968784,421.51873653,0.00033033,30]
[343931417,1733090968923,421.51873653,0.00033241,30]
[343931418,1733090969045,421.51873653,0.00033687,30]
[343931419,1733090969313,421.51873653,0.00033917,30]
[343931420,1733090969528,421.51873653,0.00034087,30]
[343931421,1733090969632,421.51873653,0.0003446,30]
[343931422,1733090970022,421.51873653,0.00034711,30]
[343931423,1733090970172,421.51873653,0.00034932,30]
[343931424,1733090970473,421.51873653,0.00035333,30]
[343931425,1733090970926,204.20918887,0.0004,120]
[343931426,1733090971070,421.51873653,0.00035442,30]
[343931427,1733090971389,421.51873653,0.0003563,30]
[343931428,1733090971580,421.51873653,0.00035969,30]
[343931429,1733090971902,421.51873653,0.00036351,30]
[343931430,1733090972184,421.51873653,0.00036676,30]
[343931431,1733090972486,421.51873653,0.00036769,30]
[343931432,1733090972786,421.51873653,0.00037253,30]
[343931433,1733090973172,421.51873653,0.00037261,30]
[343931434,1733090974173,421.51873653,0.00037595,30]
[343931435,1733090974332,421.51873653,0.00037932,30]
[343931436,1733090974657,421.51873653,0.00038251,30]
[343931437,1733090974968,421.51873653,0.00038543,30]
[343931438,1733090975297,421.51873653,0.00038878,30]
[343931439,1733090975647,421.51873653,0.00039092,30]
[343931440,1733090976425,421.51873653,0.00039285,30]
[343931441,1733090976774,421.51873653,0.00039598,30]
[343931442,1733090977350,421.51873653,0.00039868,30]
[343931443,1733090977563,421.51873653,0.00040109,30]
[343931444,1733090977750,421.51873653,0.00040505,30]
[343931445,1733090977998,421.51873653,0.00040692,30]
[343931446,1733090978327,421.51873676,0.00041046,30]
[343931447,1733090993547,150.0,0.00041046,30]
[343931448,1733091005723,150.0,0.00041046,30]
[343931449,1733091006205,500.0,0.00041046,30]
[343931450,1733091006983,500.0,0.00041046,30]
[343931451,1733091016929,150.0,0.00041046,30]
[343931452,1733091026730,500.71537145,0.00038356,120]
[343931461,1733091031829,-4900.0,7.2e-05,2]
[343931462,1733091031839,-549.5,7.201e-05,2]
[343931463,1733091032019,-555.6909775,7.201e-05,2]
[343931464,1733091032029,-251.95393259,7.201e-05,2]
[343931465,1733091032042,-45.67887173,7.201e-05,2]
[343931466,1733091032052,-250.0,7.201e-05,2]
[343931467,1733091032062,-541.65113127,7.3e-05,2]
[343931468,1733091032073,-1567.06695188,7.3e-05,2]
[343931469,1733091032084,-587.304,7.3e-05,2]
[343931470,1733091032097,-3903.97791685,7.3e-05,2]
[343931471,1733091032107,-8300.0,7.4e-05,2]
[343931472,1733091032116,-1600.0,7.5e-05,2]
[343931473,1733091032126,-1600.0,7.6e-05,2]
[343931474,1733091032139,-150.0,7.661e-05,2]
[343931475,1733091032149,-150.0,7.664e-05,2]
[343931476,1733091032159,-5960.0,7.664e-05,2]
[343931477,1733091032168,-1166.0,7.664e-05,2]
[343931478,1733091032178,-13704.0,7.664e-05,2]
[343931479,1733091032188,-1600.0,7.7e-05,2]
[343931481,1733091032197,-396.368,7.75e-05,2]
[343931483,1733091032207,-630.0,7.75e-05,2]
[343931485,1733091032217,-816.0,7.75e-05,2]
[343931487,1733091032227,-1252.0,7.75e-05,2]
[343931489,1733091032237,-3759.0,7.75e-05,2]
[343931490,1733091032246,-534.0,7.75e-05,2]
[343931491,1733091032256,-3055.589,7.75e-05,2]
[343931492,1733091032268,-366.86043315,7.75e-05,2]
[343931493,1733091032280,-601.13956685,7.75e-05,2]
[343931494,1733091032290,-1600.0,7.8e-05,2]
[343931495,1733091032300,-986.3906951,7.9e-05,2]
[343931497,1733091032310,-986.39069511,7.9e-05,2]
[343931498,1733091032320,-2027.3823,7.9e-05,2]
[343931500,1733091032330,-1061.2116,7.9e-05,2]
[343931502,1733091032340,-264.3615,7.9e-05,2]
[343931504,1733091032350,-2142.0,7.9e-05,2]
[343931506,1733091032360,-374.34580083,7.92e-05,2]
[343931507,1733091032370,-1883.532,7.96e-05,2]
[343931508,1733091032381,-184.19,7.96e-05,2]
[343931509,1733091032393,-200.0,7.964e-05,2]
[343931510,1733091032403,-282.38,7.969e-05,2]
[343931511,1733091032414,-500.0,7.973e-05,2]
[343931512,1733091032424,-200.0,7.973e-05,2]
[343931513,1733091032434,-912.3397172,7.99e-05,2]
[343931514,1733091032444,-262.7590682,7.99e-05,2]
[343931515,1733091032453,-449.5373936,7.99e-05,2]
[343931516,1733091032464,-514.35932584,7.99e-05,2]
[343931517,1733091032473,-446.1909612,7.99e-05,2]
[343931518,1733091032483,-959.7607647,7.995e-05,2]
[343931519,1733091032493,-1007.1818121,7.995e-05,2]
[343931520,1733091032503,-1054.6028596,7.995e-05,2]
[343931521,1733091032512,-276.4166016,7.995e-05,2]
[343931522,1733091032523,-290.0741351,7.995e-05,2]
[343931523,1733091032534,-303.7316686,7.995e-05,2]
[343931524,1733091032544,-150.0,7.998e-05,2]